bitfinex/quotes_ETHUSD_20240927
["timestamp","ask_amount","ask_price","bid_price","bid_amount"]
[1727447747788,2.71120967,2699.1,2698.8,15.15966852]
[1727447748001,2.71120967,2699.1,2698.9,0.06577179]
[1727447748531,2.71120967,2699.4,2699.1,3.70493]
[1727447748687,2.71120967,2699.4,2699.0,16.39716852]
[1727447748892,2.71120967,2699.4,2699.2,0.06575814]
[1727447749250,2.71120967,2699.4,2699.3,0.06575359]
[1727447749397,2.71120967,2699.4,2699.3,15.15966852]
[1727447749597,2.71120967,2699.4,2699.3,15.22542211]
[1727447750038,3.70452,2699.4,2699.3,15.22542211]
[1727447750247,5.17870849,2699.4,2699.3,0.06575359]
[1727447750535,10.19708733,2699.4,2699.3,0.06575359]
[1727447750702,3.70495,2699.1,2698.8,15.15966852]
[1727447750890,6.41764479,2699.1,2698.8,15.15966852]
[1727447751089,6.41764479,2699.1,2698.9,0.06528916]
[1727447751508,8.38366607,2699.0,2698.9,0.06528916]
[1727447751942,8.38366607,2699.0,2697.9,3.70653]
[1727447751943,3.70597,2698.4,2698.2,15.15966852]
[1727447752142,3.70597,2698.4,2698.3,15.15966852]
[1727447752343,2.71362587,2698.8,2698.3,15.22281554]
[1727447752546,0.55,2698.7,2698.3,16.86927709]
[1727447752787,0.55,2698.7,2698.4,0.07411119]
[1727447752988,2.71362587,2698.9,2698.3,16.86927709]
[1727447753145,4.12859607,2698.8,2698.5,0.06313791]
[1727447753490,6.96892587,2698.9,2698.6,0.06313336]
[1727447753692,2.32843986,2698.7,2698.6,0.06313336]
[1727447753896,2.32843075,2698.7,2698.6,15.22280188]
[1727447754189,2.32843075,2698.7,2698.6,18.32791571]
[1727447754370,2.71362587,2698.9,2698.6,18.39104907]
[1727447754547,3.70536,2698.8,2698.6,17.11564907]
[1727447754955,3.70536,2698.8,2698.6,15.22280188]
[1727447755162,6.42298915,2698.8,2698.6,15.22280188]
[1727447755359,4.25548,2698.7,2698.6,15.22280188]
[1727447755579,4.25548,2698.7,2698.6,0.06313336]
[1727447755912,2.71762915,2698.7,2698.4,15.15966852]
[1727447756117,2.71762915,2698.8,2698.6,0.06313336]
[1727447756276,2.71762915,2698.8,2698.5,5.72931822]
[1727447756464,2.71762915,2698.8,2698.5,1.94945002]
[1727447757087,2.33054177,2698.6,2698.5,1.94945002]
[1727447757404,6.42297915,2698.8,2698.5,0.06288417]
[1727447757707,2.71762915,2698.8,2698.5,0.06288417]
[1727447758089,2.33067747,2698.6,2698.5,0.06288417]
[1727447758993,2.33067747,2698.6,2698.5,3.84275198]
[1727447759193,3.70509,2699.0,2698.5,0.13699198]
[1727447759397,2.3305342,2698.6,2698.5,0.06288417]
[1727447759593,2.3305342,2698.6,2698.1,4.96717]
[1727447759912,2.3305342,2698.6,2697.8,3.70669]
[1727447759913,1.94224748,2698.2,2697.8,1.2357]
[1727447760221,1.94224748,2698.2,2698.0,3.70644]
[1727447760506,1.94224748,2698.2,2697.8,4.94231]
[1727447760728,1.55383655,2698.0,2697.9,0.494231]
[1727447761220,1.55383655,2698.0,2697.9,4.200811]
[1727447761422,1.55383655,2698.0,2697.9,0.494231]
[1727447761603,1.55383655,2698.0,2697.9,4.200811]
[1727447761768,1.94224748,2698.1,2698.0,3.70644]
[1727447761965,1.94224748,2698.2,2698.1,3.70631]
[1727447762571,1.94224748,2698.2,2698.0,0.92170657]
[1727447762909,1.94224748,2698.1,2697.9,3.70655]
[1727447763064,1.94224748,2698.1,2697.8,1.2357]
[1727447763268,1.94224748,2698.1,2697.9,0.494245]
[1727447763469,1.94224748,2698.1,2697.7,3.70685]
[1727447763705,1.94224748,2698.1,2697.5,4.92682]
[1727447763706,1.55401981,2697.9,2697.5,4.92682]
[1727447763924,1.9425547,2698.0,2697.6,19.42]
[1727447764213,5.26090295,2697.7,2697.6,19.42]
[1727447764372,5.81090295,2697.7,2697.6,19.42]
[1727447764568,7.41476,2697.4,2696.9,19.42]
[1727447764803,7.41476,2697.4,2696.8,5.02572]
[1727447764804,5.26142755,2697.6,2697.0,23.12774]
[1727447765110,1.55433755,2697.6,2697.0,19.42]
[1727447765319,1.55433755,2697.6,2697.3,3.70731]
[1727447765501,1.55433755,2697.6,2697.4,4.078001]
[1727447765820,1.55433755,2697.6,2697.5,24.40783]
[1727447766000,1.55433755,2697.6,2697.5,19.42]
[1727447766629,1.55433755,2697.6,2697.5,23.12713]
[1727447766775,1.55433755,2697.7,2697.6,3.70699]
[1727447766981,1.55433755,2697.8,2697.7,23.12686]
[1727447767181,1.55433755,2697.8,2697.7,27.43556]
[1727447767526,1.55433755,2698.0,2697.9,3.70658]
[1727447767816,1.55433755,2698.0,2697.9,6.52078]
[1727447768576,1.55433755,2698.1,2698.0,3.70644]
[1727447768920,2.3317366,2698.4,2698.1,3.70631]
[1727447769087,2.3317366,2698.4,2698.2,19.42]
[1727447770019,2.3317366,2698.4,2698.2,23.12616]
[1727447770182,2.3317366,2698.4,2698.3,2.683237]
[1727447770593,2.72035937,2698.6,2698.3,2.683237]
[1727447770801,2.3319603,2698.4,2698.3,2.683237]
[1727447771108,2.3319603,2698.4,2698.3,6.389267]
[1727447771293,2.3319603,2698.4,2698.3,2.683237]
[1727447771486,2.3319603,2698.4,2698.2,19.42]
[1727447771681,2.3319603,2698.3,2698.2,19.42]
[1727447772731,0.55,2698.3,2698.2,19.42]
[1727447772881,0.55,2698.3,2697.1,3.70768]
[1727447772882,0.55,2698.3,2697.7,19.42]
[1727447773086,3.70723,2697.5,2697.2,19.42]
[1727447773404,3.70728,2697.4,2697.3,19.42]
[1727447773582,3.70768,2697.1,2697.0,19.42]
[1727447774029,5.26263821,2697.2,2697.0,19.42]
[1727447774531,1.55508821,2697.2,2696.5,19.42]
[1727447774684,3.70807,2696.9,2696.5,1.942]
[1727447774882,2.10508821,2697.1,2696.4,3.70864]
[1727447774883,0.55,2696.8,2696.4,3.70864]
[1727447775282,5.26286821,2697.1,2696.5,0.12449863]
[1727447775283,0.55,2696.9,2696.5,0.12449863]
[1727447775506,1.55508821,2697.1,2696.6,4.09155386]
[1727447775723,1.55508821,2697.2,2697.1,3.70768]
[1727447775925,1.55508821,2697.4,2697.1,19.42]
[1727447776231,1.55508821,2697.4,2697.1,19.4703057]
[1727447776380,5.65099026,2697.5,2697.1,19.4703057]
[1727447776381,1.55508821,2697.3,2697.1,25.49578027]
[1727447776586,1.55508821,2697.4,2697.1,25.49578027]
[1727447778403,5.26222821,2697.5,2697.1,19.4703057]
[1727447778851,1.55508821,2697.4,2697.1,19.4703057]
[1727447779249,1.55508821,2697.4,2697.1,23.1778757]
[1727447779451,1.55508821,2697.7,2697.3,3.70731]
[1727447779740,1.55508821,2697.9,2697.4,0.05057689]
[1727447779940,1.55508821,2697.9,2697.5,19.42]
[1727447780162,5.26167821,2697.9,2697.5,19.42]
[1727447780368,6.97828428,2698.0,2697.6,0.05058636]
[1727447780503,1.55508821,2698.2,2697.7,19.42]
[1727447780844,1.2382,2698.3,2697.8,3.75714912]
[1727447781055,3.7058,2698.5,2697.9,2.31771491]
[1727447781223,7.41216,2698.3,2698.0,19.42]
[1727447781556,3.70631,2698.1,2698.0,0.05050001]
[1727447781909,4.25631,2698.1,2698.0,0.05050001]
[1727447782304,5.58711,2698.1,2698.0,0.05050001]
[1727447782704,8.22703503,2698.1,2698.0,0.05050001]
[1727447782903,3.70686,2697.7,2697.6,19.42]
[1727447783120,4.25722,2697.5,2697.1,19.42]
[1727447783523,0.55,2697.5,2697.1,19.42]
[1727447783756,3.70721,2697.5,2697.1,19.42]
[1727447784064,0.55,2697.7,2697.1,19.42]
[1727447784065,0.55,2697.7,2697.2,3.70753]
[1727447784218,3.70702,2697.6,2697.1,19.88582923]
[1727447784417,0.55,2697.7,2697.1,23.59339923]
[1727447784721,7.9639,2697.7,2697.1,23.59345923]
[1727447784918,4.25693,2697.7,2697.1,23.59345923]
[1727447785130,3.70711,2697.6,2697.1,19.88582923]
[1727447785329,4.25714,2697.5,2697.1,19.88582923]
[1727447785917,0.55,2697.6,2697.1,19.88582923]
[1727447786119,4.25705,2697.6,2697.1,23.59350923]
[1727447786320,0.55,2697.6,2697.1,19.88582923]
[1727447786516,0.55,2697.3,2697.1,19.42]
[1727447786763,3.70754,2697.2,2697.1,19.42]
[1727447787122,3.70754,2697.2,2696.6,4.99365]
[1727447787123,3.70754,2697.2,2696.7,23.12822]
[1727447787319,3.70754,2697.2,2696.8,19.42]
[1727447787523,4.25741,2697.3,2696.8,19.42]
[1727447788026,7.9649,2697.3,2696.8,19.42]
[1727447788229,4.25741,2697.3,2696.8,19.42]
[1727447788466,3.70769,2697.1,2696.8,19.42]
[1727447788676,0.55,2697.0,2696.8,19.42]
[1727447788822,4.25789,2697.0,2696.8,19.42]
[1727447789140,3.70818,2696.8,2696.6,19.42]
[1727447789341,3.70818,2696.8,2696.7,19.42]
[1727447789342,0.55,2696.8,2696.7,19.42]
[1727447789785,8.38668607,2696.8,2696.7,19.42]
[1727447789989,8.38668607,2696.8,2695.9,8.72348]
[1727447789990,4.25851,2696.5,2696.4,19.42]
[1727447790179,4.25851,2696.5,2696.0,19.42]
[1727447790419,0.55,2696.4,2696.0,19.42]
[1727447790623,0.55,2696.5,2696.0,23.12919]
[1727447790994,0.55,2696.7,2696.1,3.70903]
[1727447791194,0.55,2696.5,2696.1,3.70903]
[1727447791412,4.25859,2696.5,2696.0,19.42]
[1727447791622,1.2233,2696.4,2696.1,19.42]
[1727447791928,4.93194,2696.4,2696.1,19.42]
[1727447792291,1.2233,2696.4,2696.1,23.129]
[1727447792483,0.55,2696.4,2696.2,2.3129]
[1727447792842,0.55,2696.4,2696.1,19.42]
[1727447793136,0.55,2696.4,2695.6,3.70967]
[1727447793137,0.55,2696.1,2695.6,3.70967]
[1727447793362,0.55,2696.1,2695.8,3.70943]
[1727447794059,0.55,2696.1,2695.7,19.42]
[1727447794545,4.25947,2695.8,2695.7,19.42]
[1727447794851,0.55,2695.9,2695.7,19.42]
[1727447795056,0.55,2696.1,2695.8,3.70938]
[1727447795210,0.55,2696.1,2695.9,7.41846]
[1727447795415,0.55,2696.1,2696.0,0.741846]
[1727447795638,3.70855,2696.5,2696.0,0.741846]
[1727447795639,0.55,2696.3,2696.0,0.741846]
[1727447795843,0.55,2696.5,2696.1,19.49418102]
[1727447796040,0.55,2696.5,2696.1,19.42]
[1727447796224,3.70881,2696.3,2696.1,19.42]
[1727447796444,3.70892,2696.2,2696.1,19.42]
[1727447796984,3.70947,2695.8,2695.7,19.42]
[1727447797254,0.55,2695.8,2695.7,19.42]
[1727447797414,0.55,2695.9,2695.7,19.42]
[1727447798238,0.55,2695.8,2695.7,19.42]
[1727447798407,0.55,2695.9,2695.7,19.42]
[1727447798925,4.25947,2695.8,2695.7,19.42]
[1727447799328,3.70982,2695.6,2695.4,19.42]
[1727447799543,4.25988,2695.5,2695.4,19.42]
[1727447799726,0.55,2695.5,2695.1,19.42]
[1727447799924,4.25969,2695.7,2695.2,6.023258]
[1727447800140,0.55,2695.5,2695.2,2.313048]
[1727447800351,0.55,2695.5,2695.3,19.42]
[1727447800750,0.5,2695.5,2695.3,19.42]
[1727447800965,3.70954,2695.8,2695.3,19.42]
[1727447801140,3.70942,2695.9,2695.4,3.70991]
[1727447801331,9.11257607,2696.0,2695.4,6.022901]
[1727447801526,1.2747,2696.0,2695.4,7.286231]
[1727447801786,3.709,2696.2,2695.6,3.70966]
[1727447802065,1.3023,2696.3,2695.7,19.790966]
[1727447802469,1.3023,2696.3,2695.8,3.70938]
[1727447802678,1.3023,2696.3,2695.8,7.41876]
[1727447802858,1.3023,2696.3,2695.8,3.70938]
[1727447803177,3.70847,2696.6,2695.9,19.42]
[1727447803477,1.93579162,2697.2,2696.3,3.70869]
[1727447803478,3.70802,2696.9,2696.3,3.70869]
[1727447803782,3.70774,2697.1,2696.4,19.42]
[1727447803928,3.70804,2696.9,2696.4,19.42]
[1727447804289,3.70804,2696.9,2696.4,21.732883]
[1727447804635,3.70804,2696.9,2696.4,25.441523]
[1727447804832,3.70747,2697.3,2696.7,1.2857]
[1727447805032,4.93129,2697.5,2697.0,3.70771]
[1727447805033,1.2241,2697.5,2697.0,3.70771]
[1727447805233,1.2241,2697.5,2697.1,19.790771]
[1727447805536,3.7073,2697.4,2697.1,19.84167474]
[1727447805738,3.7073,2697.4,2697.1,19.47090374]
[1727447805960,3.70754,2697.2,2697.1,19.47090374]
[1727447806473,4.25754,2697.2,2697.1,19.47090374]
[1727447806877,0.55,2697.2,2697.1,19.47090374]
[1727447807176,4.25754,2697.2,2697.1,19.47090374]
[1727447807357,6.78519461,2697.2,2697.1,19.47090374]
[1727447807674,6.78519461,2697.2,2697.1,19.42]
[1727447808180,6.78519461,2697.2,2697.1,19.47048852]
[1727447809149,5.57584,2697.2,2697.1,19.47048852]
[1727447809763,1.8683,2697.2,2697.1,19.47048852]
[1727447809989,5.57584,2697.2,2697.1,19.47048852]
[1727447810150,4.12859607,2697.4,2697.1,19.47048852]
[1727447810350,3.70749,2697.3,2697.1,0.05048852]
[1727447810603,3.70749,2697.3,2696.7,23.12814]
[1727447810752,3.70749,2697.3,2697.2,0.04991992]
[1727447811095,3.70778,2697.1,2696.7,19.42]
[1727447811249,3.70746,2697.3,2696.8,3.70809]
[1727447811687,3.70692,2697.7,2697.1,3.70758]
[1727447812057,3.70722,2697.5,2697.1,2.683539]
[1727447812206,3.70722,2697.5,2696.9,19.42]
[1727447812207,4.12859607,2697.5,2696.9,19.42]
[1727447812378,7.41501,2697.3,2696.9,19.42]
[1727447812764,4.12859607,2697.5,2696.9,23.12792]
[1727447812967,3.70707,2697.6,2697.0,3.70771]
[1727447813512,3.70707,2697.6,2696.9,23.12792]
[1727447813513,5.0052,2697.8,2697.1,3.70766]
[1727447813709,3.70653,2698.0,2697.5,3.70713]
[1727447813869,3.70653,2698.0,2697.2,1.715766]
[1727447813870,3.70673,2697.8,2697.3,3.70729]
[1727447814506,3.70715,2697.5,2696.9,24.46117]
[1727447814670,3.70766,2697.2,2696.9,20.7533]
[1727447814867,0.55,2697.1,2696.9,20.7533]
[1727447815083,0.55,2697.2,2696.9,20.7533]
[1727447815309,0.55,2697.0,2696.6,3.70835]
[1727447815997,0.55,2697.0,2696.5,19.42]
[1727447816179,4.25789,2697.0,2696.5,19.42]
[1727447816387,0.55,2696.7,2696.5,19.42]
[1727447816639,4.25837,2696.6,2696.5,19.42]
[1727447816925,0.55,2696.6,2696.5,19.42]
[1727447817123,3.7077,2697.1,2696.6,3.70827]
[1727447817343,0.55,2697.0,2696.6,3.70827]
[1727447817485,0.55,2697.0,2696.6,5.04107]
[1727447817883,3.70749,2697.3,2696.8,3.70807]
[1727447817884,0.55,2697.2,2696.8,3.70807]
[1727447818696,0.55,2697.2,2696.9,0.07415178]
[1727447818896,0.55,2697.2,2696.8,3.70809]
[1727447819123,0.55,2697.2,2696.7,3.70816]
[1727447819334,0.55,2697.2,2696.6,5.04104]
[1727447819499,0.55,2697.2,2696.6,1.3328]
[1727447819500,4.25787,2697.0,2696.6,1.3328]
[1727447819827,0.55,2696.6,2696.1,19.42]
[1727447819999,3.70872,2696.4,2696.1,19.42]
[1727447820200,3.7088,2696.3,2696.1,19.42]
[1727447820516,4.2588,2696.3,2696.2,0.04784141]
[1727447821028,0.55,2696.5,2696.2,0.04784141]
[1727447821202,0.55,2696.3,2696.2,0.04784141]
[1727447821735,0.55,2696.7,2696.2,0.04784141]
[1727447821944,3.70792,2697.0,2696.4,3.70854]
[1727447822245,4.99699,2697.6,2697.0,3.70773]
[1727447822394,3.70681,2697.8,2697.0,3.70773]
[1727447822395,3.70691,2697.7,2697.2,3.70746]
[1727447822588,5.73443007,2698.0,2697.1,19.46832034]
[1727447822786,3.70722,2697.5,2697.1,19.46832034]
[1727447823205,7.41448,2697.5,2697.1,19.46832034]
[1727447823508,7.41391,2697.7,2697.1,23.17600034]
[1727447823902,3.70712,2697.6,2697.1,19.46832034]
[1727447824095,0.55,2697.4,2697.1,19.46832034]
[1727447824291,0.55,2697.5,2697.1,19.46832034]
[1727447824522,0.55,2697.2,2697.1,19.46832034]
[1727447824770,4.12859607,2697.6,2697.1,19.46832034]
[1727447825038,4.2572,2697.5,2697.1,19.46832034]
[1727447825260,0.55,2697.5,2697.1,19.46832034]
[1727447825386,4.25719,2697.5,2697.1,19.46832034]
[1727447825591,0.55,2697.5,2697.2,19.42]
[1727447825888,3.70728,2697.4,2697.3,0.0481688]
[1727447826216,4.25741,2697.3,2697.2,19.42]
[1727447826802,4.25734,2697.4,2697.2,19.42]
[1727447827074,0.55,2697.5,2697.2,19.42]
[1727447827220,0.55,2697.6,2697.2,22.995458]
[1727447827539,0.55,2697.7,2697.3,26.83471]
[1727447827828,9.08981607,2698.0,2697.5,3.7071]
[1727447828030,10.29878468,2698.0,2697.5,3.70712]
[1727447828192,3.70665,2697.9,2697.3,26.83465]
[1727447828394,3.70665,2697.9,2697.4,19.42]
[1727447828921,0.55,2697.8,2697.4,23.12724]
[1727447829128,4.25675,2697.8,2697.4,19.42]
[1727447829291,0.55,2697.6,2697.5,19.42]
[1727447829600,3.70768,2697.1,2697.0,19.42]
[1727447829798,0.55,2697.1,2697.0,19.42]
[1727447830004,4.25768,2697.1,2697.0,19.42]
[1727447830543,3.70754,2697.2,2697.0,19.42]
[1727447830834,4.25768,2697.1,2697.0,19.42]
[1727447831031,0.55,2697.1,2697.0,19.42]
[1727447831597,5.47539607,2697.4,2697.0,19.42]
[1727447831598,12.89016607,2697.4,2697.0,19.42]
[1727447831797,0.55,2697.3,2697.0,19.42]
[1727447831999,3.70756,2697.2,2697.0,19.42]
[1727447832333,0.55,2697.1,2697.0,19.42]
[1727447832722,3.70755,2697.2,2697.0,19.42]
[1727447833040,0.55,2697.4,2697.0,23.12773]
[1727447833256,3.70713,2697.5,2697.1,3.589873]
[1727447833396,3.7074,2697.4,2697.1,1.2771]
[1727447834499,0.55,2697.3,2697.1,20.6971]
[1727447834924,4.25714,2697.5,2697.1,20.6971]
[1727447835127,4.25714,2697.5,2697.2,0.04785153]
[1727447835528,1.55408377,2698.1,2697.2,0.04785153]
[1727447835529,4.12859607,2698.1,2697.2,0.04785153]
[1727447835840,1.93560663,2698.3,2697.2,0.04785153]
[1727447835841,1.2854,2698.3,2697.5,3.707]
[1727447836042,3.70679,2697.8,2697.6,19.42]
[1727447836338,5.414839,2697.7,2697.6,19.4677281]
[1727447836933,5.414839,2697.7,2697.6,0.0477281]
[1727447837322,3.70763,2697.2,2697.0,19.42]
[1727447837525,0.55,2697.1,2697.0,19.42]
[1727447837923,4.25768,2697.1,2697.0,19.42]
[1727447839313,3.70823,2696.7,2696.6,19.42]
[1727447839568,4.25844,2696.6,2696.3,19.42]
[1727447839749,4.25844,2696.6,2696.2,1.3315]
[1727447839750,4.25844,2696.6,2696.4,19.42]
[1727447840305,0.55,2696.6,2696.4,19.42]
[1727447840546,4.12859607,2697.5,2696.5,20.7515]
[1727447840709,7.83575607,2697.5,2696.6,19.42]
[1727447840910,7.83575607,2697.5,2696.9,3.70795]
[1727447841210,7.83575607,2697.5,2697.0,3.7078]
[1727447841630,3.70744,2697.3,2696.7,7.41627]
[1727447841905,3.70744,2697.3,2696.8,3.70801]
[1727447842246,7.83575607,2697.5,2696.7,6.154094]
[1727447842434,4.25734,2697.4,2696.9,3.70795]
[1727447842632,0.55,2697.4,2697.0,3.70773]
[1727447842817,4.12859607,2697.5,2697.1,3.70767]
[1727447843016,4.12859607,2697.5,2696.7,2.445994]
[1727447843017,5.06975,2697.0,2695.9,19.42]
[1727447843345,5.06975,2697.0,2694.6,6.13223]
[1727447843346,3.70968,2695.7,2695.0,1.2671]
[1727447843648,3.71018,2695.3,2695.1,19.42]
[1727447843849,3.71018,2695.3,2694.8,19.42]
[1727447843850,3.71044,2695.1,2694.8,19.42]
[1727447844053,3.71044,2695.1,2694.4,1.3451]
[1727447844254,0.55,2694.5,2694.1,1.2428]
[1727447844456,4.12859607,2694.6,2694.0,19.42]
[1727447844627,0.55,2694.3,2693.8,1.2428]
[1727447844822,0.55,2694.3,2693.5,0.93332365]
[1727447845130,0.55,2694.5,2693.7,3.71235]
[1727447845343,3.71141,2694.4,2693.6,27.62506606]
[1727447845648,0.55,2694.3,2693.6,27.62506606]
[1727447845867,7.83982607,2694.6,2693.7,0.60535094]
[1727447845868,0.55,2694.5,2693.7,0.60535094]
[1727447846074,0.55,2694.3,2693.7,2.76250661]
[1727447846275,4.12859607,2694.2,2693.3,19.42]
[1727447846568,4.12859607,2694.2,2693.1,1.3181]
[1727447846569,0.55,2694.2,2693.5,3.71255]
[1727447846868,0.55,2694.2,2693.6,0.742529]
[1727447847256,0.55,2694.2,2693.6,4.454999]
[1727447847464,0.55,2694.2,2693.6,3.71247]
[1727447847664,3.7116,2694.3,2693.6,3.71247]
[1727447847849,3.71192,2694.1,2693.4,3.71271]
[1727447848169,0.55,2694.0,2693.4,3.71269]
[1727447848475,0.55,2694.2,2693.5,0.371269]
[1727447848769,3.71183,2694.1,2693.5,0.371269]
[1727447848973,0.55,2694.2,2693.5,0.371269]
[1727447848974,0.55,2694.2,2693.5,4.083889]
[1727447849130,4.2617,2694.2,2693.5,4.083889]
[1727447849334,0.55,2694.2,2693.6,4.4921379]
[1727447849569,3.71186,2694.1,2693.6,0.7796579]
[1727447849779,4.26172,2694.2,2693.6,0.7796579]
[1727447849975,0.55,2694.2,2693.7,19.42]
[1727447850129,0.55,2694.2,2693.7,25.19663221]
[1727447850574,0.55,2694.2,2693.7,21.48431221]
[1727447850873,3.71196,2694.0,2693.7,19.46434642]
[1727447851061,3.7122,2693.9,2693.7,19.46434642]
[1727447851268,4.26217,2693.9,2693.8,19.42]
[1727447851468,4.63339,2693.9,2693.8,19.42]
[1727447851639,4.63339,2693.9,2693.8,19.45405092]
[1727447851836,4.63339,2693.9,2693.8,19.42]
[1727447852034,7.63339,2693.9,2693.8,0.03289223]
[1727447852248,7.42604,2693.3,2693.0,19.42]
[1727447852483,4.26306,2693.2,2693.1,19.42]
[1727447852668,0.55,2693.2,2693.1,19.42]
[1727447852873,3.7127,2693.5,2693.1,19.42]
[1727447852874,0.55,2693.4,2693.1,19.42]
[1727447853064,0.55,2693.4,2693.1,21.733344]
[1727447853263,3.71241,2693.7,2693.1,19.42]
[1727447853463,0.55,2693.4,2693.1,19.42]
[1727447853977,9.81384621,2694.5,2693.4,3.71268]
[1727447854277,3.71189,2694.1,2693.5,23.13262]
[1727447854459,3.71166,2694.3,2693.6,3.71248]
[1727447854647,9.81388621,2694.5,2693.6,6.397001]
[1727447854853,3.71144,2694.4,2693.8,3.71221]
[1727447855553,3.71144,2694.4,2693.6,6.397001]
[1727447855554,3.71168,2694.2,2693.6,6.396941]
[1727447855783,3.71198,2694.0,2693.5,19.42]
[1727447856398,0.55,2694.3,2693.7,3.71235]
[1727447856553,0.55,2694.3,2693.8,3.71212]
[1727447856752,0.55,2694.3,2693.9,3.71206]
[1727447856953,0.55,2694.3,2693.7,3.71224]
[1727447857169,0.55,2694.3,2693.8,4.083364]
[1727447857510,3.71169,2694.2,2693.8,0.371224]
[1727447857694,3.71169,2694.2,2693.5,23.13254]
[1727447857871,3.71169,2694.2,2693.6,3.71248]
[1727447858072,0.55,2694.1,2693.5,23.13254]
[1727447858266,3.71198,2694.0,2693.6,19.42]
[1727447858488,3.71209,2693.9,2693.6,19.42]
[1727447858690,7.42405,2694.0,2693.7,19.42]
[1727447858894,3.71198,2694.0,2693.7,19.42]
[1727447859170,4.95801,2694.5,2693.7,19.42]
[1727447859171,4.26222,2693.8,2693.7,19.42]
[1727447859362,4.688442,2693.8,2693.7,19.42]
[1727447860511,3.71278,2693.4,2692.7,19.42]
[1727447860668,2.291722,2693.8,2692.8,19.42]
[1727447860669,0.55,2693.5,2692.8,19.42]
[1727447860871,3.71284,2693.4,2692.9,6.98338]
[1727447861100,3.71284,2693.4,2692.8,23.13347]
[1727447861101,0.55,2693.3,2692.8,23.13347]
[1727447861281,0.55,2693.3,2693.0,3.7133]
[1727447861700,0.55,2693.4,2693.0,3.7133]
[1727447861865,196.28676,2693.0,2692.9,3.77179096]
[1727447862069,196.28676,2693.0,2692.9,4.084816]
[1727447862417,196.28676,2693.0,2692.9,3.71346]
[1727447863203,196.28676,2693.0,2692.8,3.71352]
[1727447863367,196.28676,2693.0,2692.9,3.71346]
[1727447864881,196.28676,2693.0,2692.8,3.71352]
[1727447865085,196.28676,2693.0,2692.9,3.71346]
[1727447865532,196.28676,2693.0,2692.8,3.71348]
[1727447865836,196.28676,2693.0,2692.6,5.04179]
[1727447866014,196.28676,2693.0,2692.6,1.328]
[1727447866184,196.28676,2693.0,2692.6,8.75562]
[1727447866387,196.28676,2693.0,2692.6,5.04179]
[1727447866826,196.28676,2693.0,2692.6,8.75554]
[1727447867009,196.28676,2693.0,2692.9,3.71346]
[1727447867211,196.28676,2693.0,2692.9,19.42]
[1727447867413,196.28676,2693.0,2692.9,23.13346]
[1727447867801,196.28676,2693.0,2692.9,23.16644298]
[1727447869105,196.28676,2693.0,2692.9,19.45298298]
[1727447869304,196.28676,2693.0,2692.9,19.42]
[1727447869515,196.28676,2693.0,2692.9,25.44682]
[1727447869853,196.28676,2693.0,2692.9,26.69182]
[1727447870000,176.86676,2693.0,2692.9,26.69182]
[1727447870332,176.86676,2693.0,2692.9,29.72469769]
[1727447875422,176.86676,2693.0,2692.9,29.76135679]
[1727447880230,176.86676,2693.0,2692.9,29.69182]
[1727447882031,157.44676,2693.0,2692.9,29.69182]
[1727447882930,155.31563038,2693.0,2692.9,29.69182]
[1727447883126,155.31563038,2693.0,2692.9,44.058952]
[1727447883379,155.31563038,2693.0,2692.9,40.178708]
[1727447884112,155.31563038,2693.0,2692.9,33.353108]
[1727447884665,155.31563038,2693.0,2692.9,32.360161]
[1727447885006,154.61461789,2693.0,2692.9,32.360161]
[1727447885302,153.60469649,2693.0,2692.9,32.360161]
[1727447885505,153.60469649,2693.0,2692.9,32.731261]
[1727447886303,153.22755431,2693.0,2692.9,32.731261]
[1727447886881,152.73121145,2693.0,2692.9,32.731261]
[1727447887078,124.42365617,2693.0,2692.9,13.43370637]
[1727447887301,123.94949216,2693.0,2692.9,14.11525379]
[1727447887609,123.74837462,2693.0,2692.9,44.93247177]
[1727447887821,123.74837462,2693.0,2692.9,46.89715071]
[1727447888107,123.74837462,2693.0,2692.9,44.93233819]
[1727447888601,123.08622968,2693.0,2692.9,44.93233819]
[1727447888786,123.08622968,2693.0,2692.9,47.19530463]
[1727447888963,123.08622968,2693.0,2692.9,44.93233819]
[1727447889162,123.01198831,2693.0,2692.9,44.93233819]
[1727447889969,123.01198831,2693.0,2692.9,45.05177441]
[1727447890264,123.01198831,2693.0,2692.9,46.93455065]
[1727447890463,123.01198831,2693.0,2692.9,30.32325091]
[1727447890666,123.01198831,2693.0,2692.9,29.93915492]
[1727447890872,123.01198831,2693.0,2692.9,7.92495492]
[1727447891069,123.01198831,2693.0,2692.9,7.34357]
[1727447891271,123.01198831,2693.0,2692.9,7.27356626]
[1727447891490,123.01198831,2693.0,2692.9,5.25755526]
[1727447891676,123.01198831,2693.0,2692.9,4.95846]
[1727447892460,123.01198831,2693.0,2692.9,3.71346]
[1727447894362,124.50898831,2693.0,2692.9,3.71346]
[1727447894570,124.50898831,2693.0,2692.6,3.71386]
[1727447894919,124.50898831,2693.0,2692.7,3.7137]
[1727447895261,124.50898831,2693.0,2692.6,3.71386]
[1727447895604,124.50898831,2693.0,2692.8,3.7136]
[1727447895816,124.50898831,2693.0,2692.6,3.71386]
[1727447896202,125.70836838,2693.0,2692.6,3.71386]
[1727447896379,125.70836838,2693.0,2692.8,3.71359]
[1727447896576,124.50898831,2693.0,2692.9,3.71346]
[1727447897405,124.50898831,2693.0,2692.9,6.71346]
[1727447897406,123.01198831,2693.0,2692.9,6.71346]
[1727447898318,123.01198831,2693.0,2692.9,3.71346]